[Event "French-ch Youth U12 2022"]
[Site "Agen"]
[Date "2022.04.20"]
[Round "5.6"]
[White "Maret, Anna"]
[Black "Alfano, Emilie"]
[Result "0-1"]
[ECO "A06"]
[WhiteElo "1328"]
[BlackElo "1635"]
[Annotator "NA RC COMBH"]
[PlyCount "111"]
[EventDate "2022.04.17"]
[EventType "swiss"]
[EventCountry "FRA"]
[SourceTitle "playchess.com"]
[Source "ChessBase"]
[SourceQuality "1"]
[TimeControl "5400+30"]

1. Nf3 {[%emt 0:00:03]} d5 {[%emt 0:00:36]} 2. g3 {[%emt 0:00:07]} Nf6 {[%emt 0:00:44]} 3. Bg2 {[%emt 0:00:06]} e6 {[%emt 0:01:12]} 4. O-O {[%emt 0:00:07]} Be7 {[%emt 0:00:52]} 5. d3 {[%emt 0:00:22]} O-O {[%emt 0:00:24]} 6. Nbd2 {[%emt 0:00:24]} b6 {[%emt 0:01:45]} 7. e4 {[%emt 0:00:51]} dxe4 {[%emt 0:07:57]} 8. dxe4 {[%emt 0:02:02]} Bb7 {[%emt 0:00:27]} 9. e5 {[%emt 0:00:39]} Nd5 {[%emt 0:00:12]} 10. h4 {[%emt 0:02:14]} h6 {[%emt 0:01:22]} 11. Re1 {[%emt 0:04:51]} Na6 {[%emt 0:07:11]} 12. Nf1 {[%emt 0:04:38]} Ndb4 {[%emt 0:02:50]} 13. Bd2 {[%emt 0:09:27]} Nc6 {[%emt 0:11:35]} 14. N1h2 {[%emt 0:03:26]} Bc5 {[%emt 0:06:11]} 15. Qc1 {[%emt 0:14:52]} f6 {[%emt 0:10:08]} 16. Ng4 {[%emt 0:14:25]} h5 {[%emt 0:05:45]} 17. exf6 {[%emt 0:07:43]} hxg4 {[%emt 0:01:56]} 18. fxg7 {[%emt 0:01:50]} Rf7 {[%emt 0:00:36]} 19. Bc3 {[%emt 0:10:09]} e5 {[%emt 0:17:48]} 20. Nxe5 {[%emt 0:04:01]} Bxf2+ {[%emt 0:01:09]} 21. Kh1 {[%emt 0:03:43]} Nxe5 {[%emt 0:01:41]} 22. Rxe5 {[%emt 0:04:36]} Bxg2+ {[%emt 0:00:23]} 23. Kxg2 {[%emt 0:00:18]} Qd6 {[%emt 0:02:41]} 24. Qg5 {[%emt 0:03:06]} Bd4 {[%emt 0:05:05]} 25. Rd5 {[%emt 0:01:37]} Rf2+ {[%emt 0:00:58]} 26. Kh1 {[%emt 0:00:38]} Qf6 {[%emt 0:00:22]} 27. Qxf6 {[%emt 0:03:06]} Bxf6 {[%emt 0:00:10]} 28. Bxf6 {[%emt 0:00:30]} Rxf6 {[%emt 0:00:04]} 29. Rg5 {[%emt 0:00:10]} Rf7 {[%emt 0:00:32]} 30. Rxg4 {[%emt 0:00:16]} Rxg7 {[%emt 0:00:03]} 31. Rxg7+ {[%emt 0:00:17]} Kxg7 32. Kg2 Rd8 {[%emt 0:00:07]} 33. Kh3 {[%emt 0:00:32]} Rd2 {[%emt 0:00:13]} 34. Rc1 {[%emt 0:00:29]} Nb4 {[%emt 0:00:08]} 35. a3 Nxc2 {[%emt 0:00:06]} 36. h5 {[%emt 0:00:39]} c5 {[%emt 0:00:19]} 37. Kh4 {[%emt 0:00:18]} Nd4 {[%emt 0:00:34]} 38. b4 {[%emt 0:01:09]} Rc2 {[%emt 0:02:53]} 39. Rxc2 {[%emt 0:01:37]} Nxc2 {[%emt 0:00:04]} 40. bxc5 {[%emt 0:00:05]} bxc5 {[%emt 0:00:09]} 41. Kg4 {[%emt 0:02:56]} Nxa3 {[%emt 0:00:08]} 42. Kf3 {[%emt 0:00:06]} a5 {[%emt 0:00:07]} 43. Ke3 {[%emt 0:00:23]} Nb5 {[%emt 0:00:25]} 44. Kd3 {[%emt 0:00:12]} Nd6 {[%emt 0:00:09]} 45. g4 {[%emt 0:00:32]} a4 {[%emt 0:00:20]} 46. Kc3 {[%emt 0:00:42]} a3 {[%emt 0:00:16]} 47. Kb3 {[%emt 0:00:06]} Nb5 48. g5 {[%emt 0:01:50]} c4+ {[%emt 0:00:29]} 49. Kc2 {[%emt 0:01:01]} Nd6 {[%emt 0:00:22]} 50. g6 {[%emt 0:00:26]} Ne4 {[%emt 0:00:14]} 51. Kc1 {[%emt 0:01:43]} c3 {[%emt 0:00:12]} 52. Kb1 {[%emt 0:00:04]} Ng3 {[%emt 0:00:13]} 53. Ka2 {[%emt 0:00:59]} c2 {[%emt 0:00:05]} 54. h6+ {[%emt 0:00:01]} Kxh6 {[%emt 0:00:09]} 55. g7 {[%emt 0:00:04]} c1=Q {[%emt 0:00:32]} 56. g8=N+ {[%emt 0:00:20]} 0-1

[Event "French-ch Youth U12 2022"]
[Site "Agen"]
[Date "2022.04.20"]
[Round "5.7"]
[White "Nogues, Norah"]
[Black "Thill-Solente, Penelope"]
[Result "1-0"]
[ECO "D02"]
[WhiteElo "1096"]
[BlackElo "1107"]
[Annotator "NA RC COMBH"]
[PlyCount "77"]
[EventDate "2022.04.17"]
[EventType "swiss"]
[EventCountry "FRA"]
[SourceTitle "playchess.com"]
[Source "ChessBase"]
[SourceQuality "1"]
[TimeControl "5400+30"]

1. d4 {[%emt 0:00:05]} d5 {[%emt 0:00:09]} 2. Nf3 {[%emt 0:00:12]} e6 {[%emt 0:00:18]} 3. c3 {[%emt 0:00:17]} Nf6 {[%emt 0:01:28]} 4. Bg5 {[%emt 0:00:19]} Be7 {[%emt 0:00:31]} 5. e3 {[%emt 0:00:25]} h6 {[%emt 0:00:37]} 6. Bh4 {[%emt 0:00:27]} O-O {[%emt 0:00:17]} 7. Bd3 {[%emt 0:00:22]} b6 {[%emt 0:00:24]} 8. Nbd2 {[%emt 0:00:29]} Bb7 {[%emt 0:01:12]} 9. O-O {[%emt 0:00:34]} Nbd7 {[%emt 0:00:40]} 10. Re1 {[%emt 0:00:56]} c5 {[%emt 0:00:36]} 11. Rc1 {[%emt 0:01:56]} Rc8 {[%emt 0:01:20]} 12. Bb1 {[%emt 0:01:49]} Re8 {[%emt 0:03:17]} 13. Qc2 {[%emt 0:01:30]} Ba6 {[%emt 0:16:33]} 14. Ne5 {[%emt 0:01:58]} Ne4 {[%emt 0:10:26]} 15. Bxe7 {[%emt 0:01:21]} Qxe7 {[%emt 0:03:53]} 16. Nxe4 {[%emt 0:01:32]} dxe4 {[%emt 0:00:47]} 17. Qxe4 {[%emt 0:01:03]} Nf6 {[%emt 0:03:32]} 18. Qf3 {[%emt 0:02:59]} Bb7 {[%emt 0:02:22]} 19. Qe2 {[%emt 0:01:47]} Be4 {[%emt 0:02:33]} 20. Bxe4 {[%emt 0:01:40]} Nxe4 {[%emt 0:00:30]} 21. Qd3 {[%emt 0:03:07]} Nf6 {[%emt 0:01:18]} 22. e4 {[%emt 0:05:27]} Red8 23. Qe3 cxd4 {[%emt 0:03:45]} 24. cxd4 {[%emt 0:06:00]} Rxc1 {[%emt 0:00:51]} 25. Rxc1 {[%emt 0:00:28]} Qd6 {[%emt 0:05:33]} 26. Nc6 {[%emt 0:03:56]} Rd7 {[%emt 0:01:40]} 27. e5 Ng4 {[%emt 0:10:09]} 28. exd6 {[%emt 0:01:40]} Nxe3 {[%emt 0:00:27]} 29. fxe3 {[%emt 0:00:21]} a5 {[%emt 0:01:05]} 30. Ne7+ {[%emt 0:01:47]} Kh7 {[%emt 0:02:03]} 31. Nc8 {[%emt 0:00:16]} Rd8 {[%emt 0:01:41]} 32. e4 {[%emt 0:01:03]} b5 {[%emt 0:01:18]} 33. e5 {[%emt 0:00:43]} a4 {[%emt 0:01:57]} 34. Rc7 {[%emt 0:00:46]} Kg6 {[%emt 0:03:32]} 35. Ne7+ {[%emt 0:00:41]} Kh7 {[%emt 0:01:10]} 36. Nc6 {[%emt 0:00:15]} Rf8 {[%emt 0:00:45]} 37. d7 {[%emt 0:00:28]} Kg6 {[%emt 0:03:27]} 38. d8=Q {[%emt 0:00:21]} Rxd8 {[%emt 0:00:13]} 39. Nxd8 {[%emt 0:00:10]} 1-0

[Event "French-ch Youth U12 2022"]
[Site "Agen"]
[Date "2022.04.21"]
[Round "6.1"]
[White "Contie, Lilio"]
[Black "Motoyama, Wesley Winsen"]
[Result "1-0"]
[ECO "B22"]
[WhiteElo "1606"]
[BlackElo "1590"]
[Annotator "NA RC COMBH"]
[PlyCount "91"]
[EventDate "2022.04.17"]
[EventType "swiss"]
[EventCountry "FRA"]
[SourceTitle "playchess.com"]
[Source "ChessBase"]
[SourceQuality "1"]
[TimeControl "5400+30"]

1. e4 {[%emt 0:00:04]} c5 {[%emt 0:00:51]} 2. c3 {[%emt 0:00:12]} d5 {[%emt 0:00:26]} 3. exd5 {[%emt 0:00:10]} Qxd5 {[%emt 0:00:46]} 4. Nf3 {[%emt 0:00:18]} Nf6 {[%emt 0:00:50]} 5. d4 {[%emt 0:00:34]} Bg4 {[%emt 0:00:36]} 6. dxc5 {[%emt 0:00:26]} Qxc5 {[%emt 0:00:41]} 7. h3 {[%emt 0:00:24]} Bxf3 {[%emt 0:10:38]} 8. Qxf3 {[%emt 0:01:46]} Qc6 {[%emt 0:02:28]} 9. Qxc6+ {[%emt 0:04:06]} Nxc6 {[%emt 0:00:35]} 10. Bc4 {[%emt 0:02:43]} e6 {[%emt 0:01:38]} 11. O-O {[%emt 0:03:04]} Be7 {[%emt 0:01:30]} 12. Nd2 {[%emt 0:03:27]} O-O {[%emt 0:01:18]} 13. Nf3 {[%emt 0:04:07]} Rfd8 {[%emt 0:03:45]} 14. Bf4 {[%emt 0:03:19]} Nd5 {[%emt 0:04:18]} 15. Bg3 {[%emt 0:02:33]} Nb6 {[%emt 0:05:14]} 16. Bb3 {[%emt 0:04:41]} Rac8 {[%emt 0:07:50]} 17. Rac1 {[%emt 0:07:33]} Bf6 {[%emt 0:03:14]} 18. Rfd1 {[%emt 0:07:37]} Rxd1+ {[%emt 0:04:14]} 19. Bxd1 {[%emt 0:02:49]} Na5 {[%emt 0:07:53]} 20. Kf1 {[%emt 0:09:50]} Nac4 {[%emt 0:06:03]} 21. b3 {[%emt 0:05:39]} Nb2 {[%emt 0:10:28]} 22. c4 {[%emt 0:03:22]} Nd3 {[%emt 0:05:59]} 23. Rb1 {[%emt 0:04:10]} Kf8 {[%emt 0:06:21]} 24. Be2 {[%emt 0:02:59]} Nb4 {[%emt 0:01:44]} 25. a4 {[%emt 0:02:43]} Ke8 {[%emt 0:01:20]} 26. Nd2 {[%emt 0:04:50]} Rd8 {[%emt 0:03:09]} 27. Ne4 {[%emt 0:01:17]} Be7 {[%emt 0:00:47]} 28. a5 {[%emt 0:08:10]} Nc8 {[%emt 0:00:55]} 29. Be5 {[%emt 0:03:51]} f6 {[%emt 0:00:39]} 30. Bc3 {[%emt 0:00:20]} Na2 {[%emt 0:02:46]} 31. Ra1 {[%emt 0:01:29]} Nxc3 {[%emt 0:00:15]} 32. Nxc3 {[%emt 0:00:10]} Nd6 {[%emt 0:00:36]} 33. Bf3 {[%emt 0:01:08]} Rb8 {[%emt 0:00:40]} 34. Ke2 {[%emt 0:00:46]} Kd7 {[%emt 0:00:36]} 35. Rd1 {[%emt 0:00:45]} Kc7 {[%emt 0:00:19]} 36. c5 {[%emt 0:01:19]} Nf7 {[%emt 0:01:32]} 37. Nb5+ {[%emt 0:00:39]} Kc8 {[%emt 0:00:07]} 38. Nxa7+ {[%emt 0:00:09]} Kc7 {[%emt 0:00:06]} 39. Nb5+ {[%emt 0:00:33]} Kc8 {[%emt 0:00:09]} 40. b4 {[%emt 0:00:42]} Nd8 {[%emt 0:00:46]} 41. Na7+ {[%emt 0:00:55]} Kc7 {[%emt 0:00:09]} 42. b5 {[%emt 0:00:21]} Bxc5 {[%emt 0:01:06]} 43. b6+ {[%emt 0:00:23]} Bxb6 {[%emt 0:00:09]} 44. Nb5+ {[%emt 0:00:14]} Kc8 {[%emt 0:00:20]} 45. axb6 {[%emt 0:00:10]} Ra8 {[%emt 0:00:59]} 46. Na7+ {[%emt 0:00:11]} 1-0

[Event "French-ch Youth U12 2022"]
[Site "Agen"]
[Date "2022.04.21"]
[Round "6.2"]
[White "Laignel, Quentin"]
[Black "Bonelli Maestracci, Pierre Joseph"]
[Result "0-1"]
[ECO "A40"]
[WhiteElo "1600"]
[BlackElo "1629"]
[Annotator "NA RC COMBH"]
[PlyCount "60"]
[EventDate "2022.04.17"]
[EventType "swiss"]
[EventCountry "FRA"]
[SourceTitle "playchess.com"]
[Source "ChessBase"]
[SourceQuality "1"]
[TimeControl "5400+30"]

1. d4 {[%emt 0:00:09]} g6 {[%emt 0:00:11]} 2. Nf3 {[%emt 0:00:30]} Bg7 {[%emt 0:00:19]} 3. Bf4 {[%emt 0:01:08]} c5 {[%emt 0:00:22]} 4. c3 {[%emt 0:00:23]} Nf6 {[%emt 0:00:12]} 5. e3 {[%emt 0:01:04]} O-O {[%emt 0:00:19]} 6. h3 {[%emt 0:01:16]} d6 {[%emt 0:01:00]} 7. Nbd2 {[%emt 0:00:57]} cxd4 {[%emt 0:00:54]} 8. exd4 {[%emt 0:01:07]} Nc6 {[%emt 0:02:26]} 9. Bc4 {[%emt 0:04:38]} Re8 {[%emt 0:04:49]} 10. O-O {[%emt 0:06:16]} e5 {[%emt 0:08:06]} 11. Be3 {[%emt 0:10:19]} e4 {[%emt 0:04:01]} 12. Ne1 {[%emt 0:00:43]} d5 {[%emt 0:01:45]} 13. Bb3 {[%emt 0:03:29]} Na5 {[%emt 0:02:43]} 14. Ba4 {[%emt 0:06:07]} Bd7 {[%emt 0:03:28]} 15. Bxd7 {[%emt 0:05:39]} Qxd7 {[%emt 0:00:28]} 16. Qe2 {[%emt 0:03:12]} Rac8 {[%emt 0:01:53]} 17. f3 {[%emt 0:00:45]} Nh5 {[%emt 0:00:49]} 18. Qf2 {[%emt 0:00:30]} f5 {[%emt 0:00:31]} 19. fxe4 {[%emt 0:00:28]} fxe4 {[%emt 0:01:03]} 20. Nc2 {[%emt 0:02:31]} Rf8 {[%emt 0:08:01]} 21. Qh4 {[%emt 0:01:07]} Qd6 {[%emt 0:02:21]} 22. Rxf8+ {[%emt 0:04:14]} Rxf8 {[%emt 0:00:29]} 23. Rf1 {[%emt 0:00:11]} Rxf1+ {[%emt 0:00:21]} 24. Nxf1 {[%emt 0:00:56]} Nc4 {[%emt 0:02:55]} 25. b3 {[%emt 0:01:03]} Nxe3 {[%emt 0:01:18]} 26. Nfxe3 {[%emt 0:00:20]} Nf4 {[%emt 0:02:14]} 27. Qg4 {[%emt 0:02:47]} Qf8 {[%emt 0:13:38]} 28. Nb4 {[%emt 0:07:34]} h5 {[%emt 0:01:34]} 29. Qg5 {[%emt 0:03:33]} Ne2+ {[%emt 0:00:39]} 30. Kh2 {[%emt 0:03:59]} Qf2 0-1

[Event "French-ch Youth U12 2022"]
[Site "Agen"]
[Date "2022.04.21"]
[Round "6.3"]
[White "Boulos, Paul"]
[Black "Lefrancois, Jean"]
[Result "1/2-1/2"]
[ECO "C48"]
[WhiteElo "1691"]
[BlackElo "1476"]
[Annotator "NA RC COMBH"]
[PlyCount "155"]
[EventDate "2022.04.17"]
[EventType "swiss"]
[EventCountry "FRA"]
[SourceTitle "playchess.com"]
[Source "ChessBase"]
[SourceQuality "1"]
[TimeControl "5400+30"]

1. e4 {[%emt 0:00:03]} e5 {[%emt 0:00:10]} 2. Nf3 {[%emt 0:00:05]} Nc6 {[%emt 0:00:17]} 3. Nc3 {[%emt 0:00:09]} Nf6 {[%emt 0:00:32]} 4. Bb5 {[%emt 0:00:06]} Nd4 {[%emt 0:00:36]} 5. O-O {[%emt 0:00:17]} Nxf3+ {[%emt 0:01:59]} 6. Qxf3 {[%emt 0:00:13]} c6 {[%emt 0:00:43]} 7. Be2 {[%emt 0:01:18]} d6 {[%emt 0:01:56]} 8. d3 {[%emt 0:00:57]} g6 {[%emt 0:03:48]} 9. Bg5 {[%emt 0:02:16]} Bg7 {[%emt 0:00:13]} 10. Qg3 {[%emt 0:01:37]} h6 {[%emt 0:02:05]} 11. Bd2 {[%emt 0:05:36]} O-O {[%emt 0:08:35]} 12. Kh1 {[%emt 0:11:53]} d5 {[%emt 0:07:05]} 13. Rad1 {[%emt 0:13:10]} g5 {[%emt 0:15:05]} 14. h3 {[%emt 0:21:12]} Re8 {[%emt 0:09:46]} 15. Qh2 {[%emt 0:04:32]} Be6 {[%emt 0:28:13]} 16. g3 {[%emt 0:09:09]} Nh7 {[%emt 0:04:54]} 17. f4 {[%emt 0:07:39]} d4 {[%emt 0:01:29]} 18. Nb1 {[%emt 0:01:01]} exf4 {[%emt 0:02:03]} 19. gxf4 {[%emt 0:00:35]} f6 {[%emt 0:04:08]} 20. Bh5 {[%emt 0:01:03]} Re7 {[%emt 0:01:20]} 21. a3 {[%emt 0:01:04]} c5 {[%emt 0:01:01]} 22. h4 {[%emt 0:03:28]} Qc7 {[%emt 0:01:28]} 23. Rg1 {[%emt 0:01:06]} Rf8 {[%emt 0:01:54]} 24. Rg2 {[%emt 0:04:34]} Bf7 {[%emt 0:01:28]} 25. Bf3 {[%emt 0:00:27]} c4 {[%emt 0:01:05]} 26. Rdg1 {[%emt 0:01:23]} Rfe8 {[%emt 0:00:35]} 27. hxg5 {[%emt 0:00:36]} fxg5 {[%emt 0:00:09]} 28. fxg5 {[%emt 0:00:36]} hxg5 {[%emt 0:00:36]} 29. Bxg5 {[%emt 0:01:09]} Nxg5 {[%emt 0:00:43]} 30. Rxg5 {[%emt 0:00:18]} Qxh2+ {[%emt 0:00:08]} 31. Kxh2 {[%emt 0:00:07]} Be6 {[%emt 0:00:13]} 32. Bg4 {[%emt 0:01:43]} Bxg4 {[%emt 0:00:27]} 33. R5xg4 {[%emt 0:00:19]} Rc8 {[%emt 0:00:36]} 34. R1g2 {[%emt 0:02:20]} Kf8 {[%emt 0:00:24]} 35. Nd2 {[%emt 0:00:35]} c3 {[%emt 0:00:43]} 36. bxc3 {[%emt 0:02:08]} Rxc3 {[%emt 0:00:08]} 37. Nb3 {[%emt 0:00:16]} Rec7 {[%emt 0:00:26]} 38. Rf4+ {[%emt 0:00:22]} Ke8 {[%emt 0:00:43]} 39. Rff2 {[%emt 0:00:15]} b6 {[%emt 0:00:34]} 40. a4 {[%emt 0:00:49]} a6 {[%emt 0:00:43]} 41. Kh3 {[%emt 0:02:06]} Rf7 {[%emt 0:00:42]} 42. Rxf7 {[%emt 0:00:21]} Kxf7 {[%emt 0:00:09]} 43. Kg4 {[%emt 0:00:55]} Rc6 {[%emt 0:00:13]} 44. Kf3 {[%emt 0:01:04]} b5 {[%emt 0:00:35]} 45. axb5 {[%emt 0:00:10]} axb5 {[%emt 0:00:05]} 46. Na5 {[%emt 0:00:26]} Rf6+ {[%emt 0:01:11]} 47. Ke2 {[%emt 0:00:18]} Ra6 {[%emt 0:00:25]} 48. Nb3 {[%emt 0:00:13]} b4 {[%emt 0:00:42]} 49. Rxg7+ {[%emt 0:00:47]} Kxg7 {[%emt 0:00:15]} 50. Nxd4 {[%emt 0:00:07]} Kf6 {[%emt 0:00:22]} 51. Kd2 {[%emt 0:00:30]} Ke5 {[%emt 0:00:49]} 52. Nb3 {[%emt 0:00:17]} Rc6 {[%emt 0:00:27]} 53. Kc1 {[%emt 0:00:21]} Rc7 {[%emt 0:00:39]} 54. Kb2 {[%emt 0:00:23]} Rc6 {[%emt 0:00:16]} 55. Na5 {[%emt 0:00:18]} Rc5 {[%emt 0:00:25]} 56. Nc4+ {[%emt 0:00:13]} Kd4 {[%emt 0:00:33]} 57. Kb3 {[%emt 0:00:41]} Rb5 {[%emt 0:00:32]} 58. Nd6 {[%emt 0:00:36]} Rb8 {[%emt 0:00:24]} 59. Nf5+ {[%emt 0:00:16]} Ke5 {[%emt 0:00:26]} 60. Ne7 {[%emt 0:00:28]} Kd6 {[%emt 0:00:24]} 61. Nd5 {[%emt 0:00:58]} Kc5 {[%emt 0:00:18]} 62. Nc7 {[%emt 0:00:25]} Kb6 {[%emt 0:00:26]} 63. Ne6 {[%emt 0:00:30]} Re8 {[%emt 0:00:36]} 64. Ng7 {[%emt 0:00:46]} Rg8 {[%emt 0:00:30]} 65. Nf5 {[%emt 0:00:11]} Rc8 {[%emt 0:00:58]} 66. Kxb4 {[%emt 0:01:05]} Rxc2 {[%emt 0:00:27]} 67. e5 {[%emt 0:00:27]} Rf2 {[%emt 0:00:42]} 68. Nd6 {[%emt 0:00:52]} Rf4+ {[%emt 0:00:24]} 69. Nc4+ {[%emt 0:00:40]} Kc6 {[%emt 0:01:07]} 70. e6 {[%emt 0:00:58]} Rf6 {[%emt 0:00:31]} 71. e7 {[%emt 0:01:09]} Re6 {[%emt 0:00:31]} 72. Na5+ {[%emt 0:00:33]} Kd7 {[%emt 0:00:18]} 73. d4 {[%emt 0:00:21]} Kxe7 {[%emt 0:00:15]} 74. d5 {[%emt 0:00:19]} Re1 {[%emt 0:00:40]} 75. Kc5 {[%emt 0:00:17]} Rc1+ {[%emt 0:00:38]} 76. Nc4 {[%emt 0:00:05]} Rd1 {[%emt 0:00:37]} 77. d6+ {[%emt 0:00:13]} Rxd6 {[%emt 0:00:42]} 78. Nxd6 1/2-1/2

[Event "French-ch Youth U12 2022"]
[Site "Agen"]
[Date "2022.04.21"]
[Round "6.4"]
[White "Ramazanov, Deniz"]
[Black "Khoury, Theo"]
[Result "0-1"]
[ECO "B99"]
[WhiteElo "1507"]
[BlackElo "1878"]
[Annotator "NA RC COMBH"]
[PlyCount "72"]
[EventDate "2022.04.17"]
[EventType "swiss"]
[EventCountry "FRA"]
[SourceTitle "playchess.com"]
[Source "ChessBase"]
[SourceQuality "1"]
[TimeControl "5400+30"]

1. e4 {[%emt 0:00:04]} c5 {[%emt 0:00:06]} 2. Nf3 {[%emt 0:00:14]} d6 {[%emt 0:00:05]} 3. d4 {[%emt 0:00:30]} cxd4 {[%emt 0:00:06]} 4. Nxd4 {[%emt 0:00:09]} Nf6 {[%emt 0:00:05]} 5. Nc3 {[%emt 0:01:00]} a6 {[%emt 0:00:06]} 6. Bg5 {[%emt 0:01:06]} e6 {[%emt 0:00:06]} 7. f4 {[%emt 0:01:13]} Be7 {[%emt 0:00:04]} 8. Qf3 {[%emt 0:00:51]} Qc7 {[%emt 0:00:06]} 9. O-O-O {[%emt 0:00:50]} Nbd7 {[%emt 0:00:05]} 10. g4 {[%emt 0:00:56]} h6 {[%emt 0:00:04]} 11. Bxf6 {[%emt 0:01:28]} Bxf6 {[%emt 0:00:06]} 12. h4 {[%emt 0:02:03]} Nb6 {[%emt 0:00:04] is now more promising than 12...Qb6.} 13. g5 {[%emt 0:02:09]} Bxd4 {[%emt 0:00:04]} 14. Rxd4 {[%emt 0:01:27]} Qc5 {[%emt 0:00:03]} 15. Rd2 {[%emt 0:01:45]} Bd7 {[%emt 0:00:05]} 16. g6 {[%emt 0:10:21]} O-O {[%emt 0:04:37]} 17. gxf7+ {[%emt 0:08:30]} Rxf7 {[%emt 0:00:17]} 18. Qg3 {[%emt 0:02:59] [#]} Rc8 $146 {[%emt 0:08:53]} ({Predecessor:} 18... Raf8 19. f5 exf5 20. Qxd6 Qxd6 21. Rxd6 Bc6 22. Bh3 Kh8 23. Bxf5 Rxf5 24. exf5 Bxh1 25. Rxb6 Rxf5 {1-0 (73) Martins,C (2231)-Magallanes,R (2036) Chess.com INT 2021}) 19. Rg1 $14 {[%emt 0:08:33]} Na4 {[%emt 0:04:45]} 20. Nxa4 {[%emt 0:09:10]} Bxa4 {[%emt 0:00:10]} 21. b3 {[%emt 0:02:39]} Bc6 {[%emt 0:02:23]} 22. Bh3 {[%emt 0:05:37]} Re8 {[%emt 0:04:41]} 23. Re2 {[%emt 0:09:13]} Qd4 {[%emt 0:04:57]} 24. c3 {[%emt 0:05:31]} Qf6 {[%emt 0:05:41]} 25. f5 {[%emt 0:03:01]} e5 {[%emt 0:09:32]} 26. Bg4 {[%emt 0:10:08]} Rc7 {[%emt 0:04:35]} 27. Kb2 {[%emt 0:03:57]} Rec8 {[%emt 0:03:42]} 28. Rc1 {[%emt 0:01:53]} Be8 29. Rg2 b5 {[%emt 0:03:42]} 30. Be2 {[%emt 0:02:22]} a5 {[%emt 0:01:30]} 31. Rgg1 {[%emt 0:05:01]} b4 32. c4 {[%emt 0:00:59]} a4 {[%emt 0:04:17]} 33. Rcd1 {[%emt 0:00:44]} Ra8 {[%emt 0:03:31]} 34. Ra1 {[%emt 0:00:35]} a3+ {[%emt 0:00:34]} 35. Kc2 {[%emt 0:00:19]} Rac8 {[%emt 0:04:55]} 36. Rad1 {[%emt 0:00:34]} Bc6 0-1

[Event "French-ch Youth U12 2022"]
[Site "Agen"]
[Date "2022.04.21"]
[Round "6.5"]
[White "Alfano, Emilie"]
[Black "Mence, Eline"]
[Result "0-1"]
[ECO "B12"]
[WhiteElo "1635"]
[BlackElo "1499"]
[Annotator "NA RC COMBH"]
[PlyCount "141"]
[EventDate "2022.04.17"]
[EventType "swiss"]
[EventCountry "FRA"]
[SourceTitle "playchess.com"]
[Source "ChessBase"]
[SourceQuality "1"]
[TimeControl "5400+30"]

1. e4 {[%emt 0:00:05]} c6 {[%emt 0:00:11]} 2. d4 {[%emt 0:00:10]} d5 {[%emt 0:00:15]} 3. Nd2 {[%emt 0:00:30]} Nf6 {[%emt 0:02:22]} 4. e5 {[%emt 0:02:06]} Nfd7 {[%emt 0:01:41]} 5. Bd3 {[%emt 0:01:34]} e6 {[%emt 0:00:59]} 6. c3 {[%emt 0:00:51]} c5 {[%emt 0:01:44]} 7. Ne2 {[%emt 0:00:56]} Nc6 {[%emt 0:02:23]} 8. Nf3 {[%emt 0:01:10]} cxd4 {[%emt 0:05:00]} 9. cxd4 {[%emt 0:00:19]} Nb6 {[%emt 0:06:28]} 10. O-O {[%emt 0:05:44]} Bd7 {[%emt 0:01:32]} 11. b3 {[%emt 0:01:27]} Be7 {[%emt 0:04:02]} 12. Bb2 {[%emt 0:02:48]} a6 {[%emt 0:05:34]} 13. Rc1 {[%emt 0:02:28]} Nb4 {[%emt 0:00:38]} 14. Bb1 {[%emt 0:00:38]} Bb5 {[%emt 0:02:45]} 15. Re1 {[%emt 0:02:14]} Bxe2 {[%emt 0:03:29]} 16. Qxe2 {[%emt 0:00:17]} Nc6 {[%emt 0:02:44]} 17. Red1 {[%emt 0:00:55]} Nd7 {[%emt 0:04:11]} 18. Nd2 {[%emt 0:02:52]} Nf8 {[%emt 0:12:51]} 19. f4 {[%emt 0:03:38]} g6 {[%emt 0:00:35]} 20. Nf3 {[%emt 0:01:40]} Qb6 {[%emt 0:04:30]} 21. Qf2 {[%emt 0:02:41]} a5 {[%emt 0:04:51]} 22. Nd2 {[%emt 0:03:13]} a4 {[%emt 0:01:46]} 23. Qe3 {[%emt 0:04:46]} Nd7 {[%emt 0:05:58]} 24. Bc2 {[%emt 0:04:31]} a3 {[%emt 0:00:39]} 25. Bc3 {[%emt 0:01:05]} Ndb8 {[%emt 0:08:02]} 26. Bd3 {[%emt 0:01:22]} Na6 {[%emt 0:00:54]} 27. Bxa6 {[%emt 0:00:25]} Qxa6 {[%emt 0:00:44]} 28. Nf3 {[%emt 0:00:51]} Kd7 {[%emt 0:03:08]} 29. Be1 {[%emt 0:01:11]} h6 {[%emt 0:00:34]} 30. Bh4 {[%emt 0:00:10]} Bxh4 {[%emt 0:00:47]} 31. Nxh4 {[%emt 0:00:07]} Rac8 {[%emt 0:02:30]} 32. Nf3 {[%emt 0:00:38]} b5 {[%emt 0:01:02]} 33. Ne1 {[%emt 0:00:15]} b4 {[%emt 0:02:50]} 34. Nd3 {[%emt 0:01:10]} Qb6 {[%emt 0:00:33]} 35. Nc5+ {[%emt 0:00:43]} Ke7 {[%emt 0:00:15]} 36. Rc2 {[%emt 0:02:17]} Na7 {[%emt 0:02:35]} 37. Rdc1 {[%emt 0:02:00]} Nb5 {[%emt 0:02:34]} 38. h3 {[%emt 0:01:57]} Qb8 {[%emt 0:02:06]} 39. Na6 {[%emt 0:01:09]} Qb7 {[%emt 0:01:45]} 40. Nxb4 {[%emt 0:00:40]} Rxc2 {[%emt 0:00:53]} 41. Rxc2 {[%emt 0:00:55]} Rc8 {[%emt 0:00:37]} 42. Qd3 {[%emt 0:01:07]} Rxc2 {[%emt 0:01:03]} 43. Qxc2 {[%emt 0:08:22]} Ke8 {[%emt 0:00:45]} 44. Qc5 {[%emt 0:00:20]} Na7 {[%emt 0:01:02]} 45. Kf2 {[%emt 0:00:42]} Qd7 {[%emt 0:00:33]} 46. Na6 {[%emt 0:00:55]} Qc6 {[%emt 0:00:33]} 47. Qxc6+ {[%emt 0:18:26]} Nxc6 {[%emt 0:00:10]} 48. Ke3 {[%emt 0:00:02]} Kd8 {[%emt 0:00:33]} 49. Kd3 {[%emt 0:00:05]} Kc8 {[%emt 0:00:20]} 50. Kc3 {[%emt 0:00:07]} Kb7 {[%emt 0:00:14]} 51. Nb4 {[%emt 0:00:07]} Ne7 {[%emt 0:00:43]} 52. Nc2 {[%emt 0:01:22]} Nf5 {[%emt 0:00:09]} 53. Nxa3 {[%emt 0:00:08]} Ne3 {[%emt 0:00:19]} 54. g3 {[%emt 0:00:45]} Nf1 {[%emt 0:00:18]} 55. g4 {[%emt 0:00:06]} Ng3 {[%emt 0:00:48]} 56. Nb5 {[%emt 0:00:28]} Ne2+ {[%emt 0:00:24]} 57. Kb4 {[%emt 0:00:32]} Nxf4 58. Nd6+ {[%emt 0:00:04]} Kb6 {[%emt 0:00:33]} 59. Nxf7 {[%emt 0:00:07]} Nxh3 {[%emt 0:00:53]} 60. Nxh6 {[%emt 0:00:04]} Nf4 {[%emt 0:00:13]} 61. Kc3 {[%emt 0:00:45]} Ne2+ {[%emt 0:00:07]} 62. Kd3 {[%emt 0:03:21]} Nc1+ {[%emt 0:00:10]} 63. Ke3 {[%emt 0:00:02]} Kc7 {[%emt 0:00:33]} 64. Kf4 {[%emt 0:01:11]} Ne2+ {[%emt 0:00:14]} 65. Kg5 {[%emt 0:00:02]} Nxd4 {[%emt 0:00:08]} 66. Kxg6 {[%emt 0:00:03]} Nf3 {[%emt 0:01:59]} 67. Kf6 {[%emt 0:00:15]} d4 {[%emt 0:00:17]} 68. g5 {[%emt 0:00:18]} d3 {[%emt 0:00:49]} 69. Ng4 {[%emt 0:00:07]} Nh2 {[%emt 0:00:34]} 70. Ne3 {[%emt 0:00:40]} d2 {[%emt 0:00:41]} 71. Nd1 0-1